fUST/lending_fUST_20240717
["ID","MTS","AMOUNT","RATE_DAILY","PERIOD"]
[332474220,1721222665519,273.37336231,9.9e-05,2]
[332474221,1721222702609,240.20078219,0.00014999,2]
[332474223,1721222712766,34978.9335217,0.00012,2]
[332474224,1721222718506,245.18734288,9.9e-05,2]
[332474225,1721222720098,209.35070592,0.00014999,2]
[332474226,1721222722114,218.06169997,0.00014999,2]
[332474228,1721222732942,156.3,0.00014999,2]
[332474229,1721222742913,42291.50925035,0.00012,2]
[332474230,1721222749820,15414.79924926,9.9e-05,2]
[332474231,1721222763204,458.86286892,0.00014999,2]
[332474232,1721222764195,825.23944593,0.00015,2]
[332474234,1721222779790,378.2458032,0.00012,2]
[332474235,1721222787270,1636.98995052,0.00014999,2]
[332474236,1721222788075,269.84990772,0.00014999,2]
[332474237,1721222792248,1491.05500079,0.00014999,2]
[332474238,1721222802363,208.24444809,0.00014999,2]
[332474240,1721222812569,309.31950403,0.00014999,2]
[332474241,1721222816027,24900.0,0.00015638,2]
[332474243,1721222823779,1435.47697858,0.00014999,2]
[332474255,1721222920119,9991.79980789,0.000139,2]
[332474257,1721222970364,181.84215111,0.00014999,2]
[332474258,1721222986028,215.38720007,0.000139,2]
[332474260,1721222993178,-313.5828226,0.00016196,2]
[332474261,1721222993211,-144.17576583,0.00016254,2]
[332474262,1721222993247,-155.82423417,0.00016254,2]
[332474263,1721222993276,-289.90481996,0.00016254,2]
[332474293,1721223032208,-300.0,0.00016254,2]
[332474295,1721223032219,-204.67805015,0.00016254,2]
[332474341,1721223038335,-95.32194985,0.00016254,2]
[332474343,1721223038346,-21269.31771389,0.00016255,2]
[332474346,1721223038358,-17276.36712772,0.00016255,2]
[332474348,1721223038369,-192.97707512,0.00016255,2]
[332474350,1721223038381,-246.423675,0.00016504,2]
[332474352,1721223038390,-277.01550922,0.00016826,2]
[332474354,1721223038401,-3926.28689793,0.00016848,2]
[332474356,1721223038411,-2660.77157843,0.00016848,2]
[332474361,1721223038422,-420.0,0.00017879,2]
[332474363,1721223038437,-3951.66628619,0.0001808,2]
[332474364,1721223038447,-154.95348764,0.0001818,2]
[332474365,1721223038457,-2875.08215231,0.0001818,2]
[332474366,1721223038467,-191.39935973,0.00018798,2]
[332474367,1721223038478,-30000.0,0.00018898,2]
[332474368,1721223038488,-1330.5698645,0.000189,2]
[332474369,1721223038499,-312.07224722,0.00019,2]
[332474370,1721223038511,-164.647948,0.00019178,2]
[332474371,1721223038523,-587.0,0.00019667,2]
[332474372,1721223038534,-207.84529182,0.0001985,2]
[332474373,1721223038546,-9071.07611797,0.0001999,2]
[332474374,1721223038558,-215.01715484,0.0002,2]
[332474375,1721223038569,-309.45844772,0.0002,2]
[332474376,1721223038580,-228.33337167,0.0002,2]
[332474377,1721223038591,-43785.8033263,0.0002,2]
[332474378,1721223038603,-7180.66385085,0.0002,2]
[332474379,1721223038614,-3951.66628618,0.00020323,2]
[332474380,1721223038626,-355.49665182,0.0002066,7]
[332474381,1721223038636,-153.0,0.00020822,2]
[332474382,1721223038647,-250.0066499,0.0002089,2]
[332474383,1721223038657,-207.84529182,0.00020899,2]
[332474384,1721223038667,-9071.07611797,0.0002098,3]
[332474385,1721223038682,-193.17326787,0.00020989,2]
[332474386,1721223038691,-500.0,0.00020989,2]
[332474387,1721223038702,-500.0,0.00020989,2]
[332474388,1721223038712,-195.9277349,0.00020989,2]
[332474389,1721223038722,-172.68065646,0.00020989,2]
[332474390,1721223038731,-201.83805034,0.00020989,2]
[332474391,1721223038741,-579.06757953,0.00020989,2]
[332474392,1721223038751,-500.0,0.00020989,2]
[332474393,1721223038762,-500.0,0.00020989,2]
[332474394,1721223038772,-398.14336419,0.00020989,2]
[332474395,1721223038782,-500.0,0.00020989,2]
[332474396,1721223038794,-500.0,0.00020989,2]
[332474397,1721223038804,-500.0,0.00020989,2]
[332474398,1721223038815,-500.0,0.00020989,2]
[332474399,1721223038825,-500.0,0.00020989,2]
[332474400,1721223038836,-500.0,0.00020989,2]
[332474401,1721223038846,-500.0,0.00020989,2]
[332474402,1721223038855,-500.0,0.00020989,2]
[332474403,1721223038867,-500.0,0.00020989,2]
[332474404,1721223038878,-500.0,0.00020989,2]
[332474405,1721223038890,-500.0,0.00020989,2]
[332474406,1721223038900,-525.68290566,0.00020989,2]
[332474407,1721223038911,-500.0,0.00020989,2]
[332474408,1721223038926,-500.0,0.00020989,2]
[332474409,1721223038940,-500.0,0.00020989,2]
[332474410,1721223038950,-500.0,0.00020989,2]
[332474411,1721223038959,-500.0,0.00020989,2]
[332474412,1721223038969,-500.0,0.00020989,2]
[332474413,1721223038979,-500.0,0.00020989,2]
[332474414,1721223038988,-61789.79864933,0.0002099,2]
[332474415,1721223038999,-18142.1522359,0.0002099,3]
[332474416,1721223039009,-75864.08158991,0.00021,2]
[332474417,1721223039408,-3496.97560864,0.00021,2]
[332474418,1721223039425,-21571.60666766,0.00021,2]
[332474419,1721223039439,-200.07730814,0.00021,2]
[332474420,1721223039450,-77.33452132,0.00021,2]
[332474431,1721223041089,-155.71902582,0.00016848,2]
[332474432,1721223041101,-73.66547868,0.00021,2]
[332474433,1721223041112,-150.112233,0.00021,3]
[332474434,1721223041122,-151.0,0.00021,2]
[332474435,1721223041132,-151.0,0.00021,2]
[332474436,1721223041143,-248.416838,0.00021,2]
[332474437,1721223041154,-151.0,0.00021,2]
[332474438,1721223041164,-151.0,0.00021,2]
[332474439,1721223041174,-151.0,0.00021,2]
[332474441,1721223041189,-151.0,0.00021,2]
[332474443,1721223041199,-151.0,0.00021,2]
[332474445,1721223041209,-553.753693,0.00021096,2]
[332474447,1721223041219,-153.0,0.00021178,2]
[332474449,1721223041227,-250.0066499,0.0002119,2]
[332474451,1721223041236,-201.7,0.00021232,2]
[332474452,1721223041246,-216.5,0.00021244,2]
[332474453,1721223041255,-216.5,0.00021455,2]
[332474454,1721223041265,-250.0066499,0.00021491,2]
[332474455,1721223041275,-625.0,0.00021634,2]
[332474456,1721223041284,-216.5,0.00021666,2]
[332474457,1721223041296,-9071.07611797,0.0002169,3]
[332474458,1721223041307,-3699.38575125,0.000217,2]
[332474459,1721223041318,-5159.77007997,0.00021713,2]
[332474460,1721223041328,-250.0066499,0.00021791,2]
[332474461,1721223041338,-150.0,0.000218,2]
[332474462,1721223041348,-2000.0,0.00021817,2]
[332474463,1721223041359,-344.96997794,0.00021844,2]
[332474464,1721223041370,-216.5,0.00021876,2]
[332474465,1721223041380,-300.44952216,0.00021885,2]
[332474466,1721223041390,-9071.07611797,0.00021897,3]
[332474467,1721223041399,-27213.2283539,0.00021907,3]
[332474468,1721223041411,-83391.98438224,0.00021917,5]
[332474469,1721223041422,-1067.07630449,0.00021917,2]
[332474470,1721223041434,-500.0,0.00021917,2]
[332474471,1721223041446,-500.0,0.00021917,2]
[332474472,1721223041455,-180.92041512,0.00021917,2]
[332474473,1721223041466,-500.0,0.00021917,2]
[332474474,1721223041475,-500.0,0.00021917,2]
[332474475,1721223041486,-500.0,0.00021917,2]
[332474476,1721223041496,-584.47402881,0.00021917,2]
[332474477,1721223041506,-500.0,0.00021917,2]
[332474478,1721223041517,-500.0,0.00021917,2]
[332474479,1721223041528,-500.0,0.00021917,2]
[332474480,1721223041538,-500.0,0.00021917,2]
[332474481,1721223041547,-500.0,0.00021917,2]
[332474482,1721223041559,-500.0,0.00021917,2]
[332474483,1721223041570,-155.21043325,0.00021917,2]
[332474484,1721223041581,-500.0,0.00021917,2]
[332474485,1721223041591,-500.0,0.00021917,2]
[332474486,1721223041602,-500.0,0.00021917,2]
[332474487,1721223041613,-500.0,0.00021917,2]
[332474488,1721223041623,-500.0,0.00021917,2]
[332474489,1721223041635,-500.0,0.00021917,2]
[332474490,1721223041645,-502.36852615,0.00021917,2]
[332474491,1721223041654,-410.7879559,0.00021917,2]
[332474492,1721223041664,-500.0,0.00021917,2]
[332474493,1721223041676,-500.0,0.00021917,2]
[332474494,1721223041691,-500.0,0.00021917,2]
[332474495,1721223041702,-500.0,0.00021917,2]
[332474496,1721223041712,-500.0,0.00021917,2]
[332474497,1721223041726,-260.34456314,0.00021917,2]
[332474498,1721223041736,-500.0,0.00021917,2]
[332474499,1721223041746,-500.0,0.00021917,2]
[332474500,1721223041755,-530.72723451,0.00021917,2]
[332474501,1721223041766,-500.0,0.00021917,2]
[332474502,1721223041777,-500.0,0.00021917,2]
[332474503,1721223041788,-508.95478055,0.00021917,2]
[332474504,1721223041799,-500.0,0.00021917,2]
[332474505,1721223041810,-500.0,0.00021917,2]
[332474506,1721223041972,-500.0,0.00021917,2]
[332474507,1721223041982,-500.0,0.00021917,2]
[332474508,1721223041993,-500.0,0.00021917,2]
[332474509,1721223042002,-500.0,0.00021917,2]
[332474510,1721223042012,-500.0,0.00021917,2]
[332474511,1721223042021,-500.0,0.00021917,2]
[332474512,1721223042031,-500.0,0.00021917,2]
[332474513,1721223042040,-2977.28,0.00021917,2]
[332474514,1721223042049,-500.0,0.00021917,2]
[332474515,1721223042058,-20672.82,0.00021917,2]
[332474516,1721223042068,-500.0,0.00021917,2]
[332474517,1721223042077,-500.0,0.00021917,2]
[332474518,1721223042086,-500.0,0.00021917,2]
[332474519,1721223042096,-500.0,0.00021917,2]
[332474520,1721223042105,-500.0,0.00021917,2]
[332474521,1721223042115,-500.0,0.00021917,2]
[332474522,1721223042124,-500.0,0.00021917,2]
[332474523,1721223042133,-280.43116125,0.00021917,2]
[332474524,1721223042143,-606.65987819,0.00021917,2]
[332474525,1721223042152,-500.0,0.00021917,2]
[332474526,1721223042161,-500.0,0.00021917,2]
[332474527,1721223042170,-500.0,0.00021917,2]
[332474528,1721223042179,-500.0,0.00021917,2]
[332474529,1721223042191,-500.0,0.00021917,2]
[332474530,1721223042201,-500.0,0.00021917,2]
[332474531,1721223042210,-176.24997834,0.00021917,2]
[332474532,1721223042219,-500.0,0.00021917,2]
[332474533,1721223042229,-500.0,0.00021917,2]
[332474534,1721223042239,-500.0,0.00021917,2]
[332474535,1721223042248,-500.0,0.00021917,2]
[332474536,1721223042258,-501.96576769,0.00021917,2]
[332474537,1721223042267,-178.78072135,0.00021917,2]
[332474538,1721223042277,-500.0,0.00021917,2]
[332474539,1721223042287,-500.0,0.00021917,2]
[332474540,1721223042297,-500.0,0.00021917,2]
[332474541,1721223042306,-500.0,0.00021917,2]
[332474542,1721223042317,-500.0,0.00021917,2]
[332474543,1721223042326,-500.0,0.00021917,2]
[332474544,1721223042336,-500.0,0.00021917,2]
[332474545,1721223042346,-500.0,0.00021917,2]
[332474546,1721223042356,-500.0,0.00021917,2]
[332474547,1721223042367,-500.0,0.00021917,2]
[332474548,1721223042378,-534.11,0.00021917,2]
[332474549,1721223042388,-500.0,0.00021917,2]
[332474550,1721223042397,-500.0,0.00021917,2]
[332474551,1721223042407,-500.0,0.00021917,2]
[332474552,1721223042417,-500.0,0.00021917,2]
[332474553,1721223042427,-500.0,0.00021917,2]
[332474554,1721223042440,-500.0,0.00021917,2]
[332474555,1721223042450,-500.0,0.00021917,2]
[332474556,1721223042460,-500.0,0.00021917,2]
[332474557,1721223042470,-500.0,0.00021917,2]
[332474558,1721223042480,-500.0,0.00021917,2]
[332474560,1721223042489,-227.69661276,0.00021917,2]
[332474561,1721223042499,-362.30546588,0.00021917,2]
[332474562,1721223042509,-500.0,0.00021917,2]
[332474563,1721223042519,-474.31871222,0.00021917,2]
[332474564,1721223042528,-500.0,0.00021917,2]
[332474565,1721223042537,-500.0,0.00021917,2]
[332474566,1721223042548,-500.0,0.00021917,2]
[332474567,1721223042557,-500.0,0.00021917,2]
[332474568,1721223042567,-500.0,0.00021917,2]
[332474569,1721223042576,-500.0,0.00021917,2]
[332474570,1721223042586,-500.0,0.00021917,2]
[332474571,1721223042595,-500.0,0.00021917,2]
[332474572,1721223042605,-500.0,0.00021917,2]
[332474573,1721223042614,-500.0,0.00021917,2]
[332474574,1721223042624,-500.64607085,0.00021917,2]
[332474575,1721223042633,-500.0,0.00021917,2]
[332474576,1721223042643,-500.0,0.00021917,2]
[332474577,1721223042652,-601.88746937,0.00021917,2]
[332474578,1721223042661,-504.54576064,0.00021917,2]
[332474579,1721223042670,-500.0,0.00021917,2]
[332474580,1721223042679,-500.0,0.00021917,2]
[332474581,1721223042696,-500.0,0.00021917,2]
[332474582,1721223042705,-500.0,0.00021917,2]
[332474583,1721223042715,-500.0,0.00021917,2]
[332474584,1721223042725,-500.0,0.00021917,2]
[332474585,1721223042737,-500.0,0.00021917,2]
[332474586,1721223042747,-500.0,0.00021917,2]
[332474587,1721223042756,-500.0,0.00021917,2]
[332474588,1721223042765,-500.0,0.00021917,2]
[332474589,1721223042776,-500.0,0.00021917,2]
[332474591,1721223042785,-500.0,0.00021917,2]
[332474593,1721223042795,-200.0,0.00021917,2]
[332474595,1721223042804,-500.0,0.00021917,2]
[332474597,1721223042813,-500.0,0.00021917,2]
[332474599,1721223042822,-500.0,0.00021917,2]
[332474600,1721223042831,-500.0,0.00021917,2]
[332474601,1721223042840,-500.0,0.00021917,2]
[332474602,1721223042850,-500.0,0.00021917,2]
[332474603,1721223042859,-526.23571842,0.00021917,2]
[332474604,1721223042868,-297.11,0.00021917,2]
[332474605,1721223042879,-500.0,0.00021917,2]
[332474606,1721223042888,-500.0,0.00021917,2]
[332474607,1721223042897,-500.0,0.00021917,2]
[332474608,1721223042907,-500.0,0.00021917,2]
[332474609,1721223042917,-500.0,0.00021917,2]
[332474610,1721223042929,-500.0,0.00021917,2]
[332474611,1721223042941,-505.37053116,0.00021917,2]
[332474612,1721223042952,-502.36816493,0.00021917,2]
[332474613,1721223042961,-500.0,0.00021917,2]
[332474614,1721223042970,-500.0,0.00021917,2]
[332474615,1721223042980,-500.0,0.00021917,2]
[332474616,1721223042990,-500.0,0.00021917,2]
[332474617,1721223043000,-500.0,0.00021917,2]
[332474618,1721223043010,-500.0,0.00021917,2]
[332474619,1721223043020,-500.0,0.00021917,2]
[332474620,1721223043029,-509.84706491,0.00021917,2]
[332474621,1721223043038,-500.0,0.00021917,2]
[332474622,1721223043048,-500.0,0.00021917,2]
[332474623,1721223043057,-500.0,0.00021917,2]
[332474624,1721223043066,-232.95849691,0.00021917,2]
[332474625,1721223043076,-500.0,0.00021917,2]
[332474626,1721223043085,-324.80919972,0.00021917,2]
[332474627,1721223043095,-500.0,0.00021917,2]
[332474628,1721223043104,-500.0,0.00021917,2]
[332474629,1721223043114,-500.0,0.00021917,2]
[332474630,1721223043123,-500.0,0.00021917,2]
[332474631,1721223043133,-500.0,0.00021917,2]
[332474632,1721223043142,-500.0,0.00021917,2]
[332474633,1721223043151,-551.13281839,0.00021917,2]
[332474634,1721223043161,-500.0,0.00021917,2]
[332474635,1721223043170,-500.0,0.00021917,2]
[332474636,1721223043179,-500.0,0.00021917,2]
[332474637,1721223043192,-500.0,0.00021917,2]
[332474638,1721223043201,-500.0,0.00021917,2]
[332474640,1721223043211,-500.0,0.00021917,2]
[332474642,1721223043220,-500.0,0.00021917,2]
[332474644,1721223043229,-500.0,0.00021917,2]
[332474646,1721223043239,-500.0,0.00021917,2]
[332474648,1721223043249,-500.0,0.00021917,2]
[332474650,1721223043259,-500.0,0.00021917,2]
[332474651,1721223043269,-500.0,0.00021917,2]
[332474653,1721223043279,-500.0,0.00021917,2]
[332474655,1721223043290,-500.0,0.00021917,2]
[332474657,1721223043300,-500.0,0.00021917,2]
[332474659,1721223043310,-500.0,0.00021917,2]
[332474660,1721223043320,-500.0,0.00021917,2]
[332474662,1721223043331,-500.0,0.00021917,2]
[332474664,1721223043343,-500.0,0.00021917,2]
[332474666,1721223043354,-500.0,0.00021917,2]
[332474667,1721223043365,-500.0,0.00021917,2]
[332474668,1721223043375,-328.58533796,0.00021917,2]
[332474669,1721223043385,-500.0,0.00021917,2]
[332474670,1721223043396,-500.0,0.00021917,2]
[332474671,1721223043406,-500.0,0.00021917,2]
[332474672,1721223043417,-500.0,0.00021917,2]
[332474673,1721223043427,-500.0,0.00021917,2]
[332474674,1721223043442,-500.0,0.00021917,2]
[332474675,1721223043451,-500.0,0.00021917,2]
[332474676,1721223043461,-200.34350988,0.00021917,2]
[332474677,1721223043470,-151.0,0.00021917,2]
[332474678,1721223043479,-500.0,0.00021917,2]
[332474679,1721223043488,-500.0,0.00021917,2]
[332474680,1721223043498,-500.0,0.00021917,2]
[332474681,1721223043508,-500.0,0.00021917,2]
[332474682,1721223043517,-500.0,0.00021917,2]
[332474683,1721223043528,-500.0,0.00021917,2]
[332474684,1721223043538,-500.0,0.00021917,2]
[332474685,1721223043549,-151.023888,0.00021917,2]
[332474686,1721223043558,-500.0,0.00021917,2]
[332474687,1721223043568,-500.0,0.00021917,2]
[332474688,1721223043577,-500.0,0.00021917,2]
[332474689,1721223043587,-500.0,0.00021917,2]
[332474690,1721223043597,-500.0,0.00021917,2]
[332474691,1721223043607,-500.0,0.00021917,2]
[332474692,1721223043616,-500.0,0.00021917,2]
[332474693,1721223043626,-566.1771125,0.00021917,2]
[332474694,1721223043635,-500.0,0.00021917,2]
[332474695,1721223043645,-500.0,0.00021917,2]
[332474696,1721223043654,-526.99804409,0.00021917,2]
[332474697,1721223043663,-320.68,0.00021917,2]
[332474698,1721223043672,-500.0,0.00021917,2]
[332474699,1721223043682,-500.0,0.00021917,2]
[332474700,1721223043699,-500.0,0.00021917,2]
[332474701,1721223043709,-500.0,0.00021917,2]
[332474702,1721223043717,-500.0,0.00021917,2]
[332474703,1721223043726,-151.0,0.00021917,2]
[332474704,1721223043735,-500.0,0.00021917,2]
[332474705,1721223043744,-500.0,0.00021917,2]
[332474706,1721223043753,-500.0,0.00021917,2]
[332474707,1721223043763,-500.0,0.00021917,2]
[332474708,1721223043775,-151.0,0.00021917,2]
[332474709,1721223043784,-500.0,0.00021917,2]
[332474710,1721223043793,-500.0,0.00021917,2]
[332474711,1721223043802,-500.0,0.00021917,2]
[332474712,1721223043811,-500.0,0.00021917,2]
[332474713,1721223043821,-151.0,0.00021917,2]
[332474714,1721223043831,-500.0,0.00021917,2]
[332474715,1721223043840,-151.0,0.00021917,2]
[332474716,1721223043850,-500.0,0.00021917,2]
[332474717,1721223043859,-500.0,0.00021917,2]
[332474718,1721223043869,-500.0,0.00021917,2]
[332474719,1721223043879,-151.0,0.00021917,2]
[332474720,1721223043888,-500.0,0.00021917,2]
[332474721,1721223043898,-500.0,0.00021917,2]
[332474722,1721223043908,-606.92723811,0.00021917,2]
[332474723,1721223043919,-500.0,0.00021917,2]
[332474724,1721223043929,-500.0,0.00021917,2]
[332474725,1721223043943,-500.0,0.00021917,2]
[332474726,1721223043954,-500.0,0.00021917,2]
[332474727,1721223043964,-500.0,0.00021917,2]
[332474728,1721223043973,-500.0,0.00021917,2]
[332474729,1721223043983,-151.0,0.00021917,2]
[332474730,1721223043996,-500.0,0.00021917,2]
[332474731,1721223044007,-500.0,0.00021917,2]
[332474732,1721223044016,-500.0,0.00021917,2]
[332474733,1721223044027,-500.0,0.00021917,2]
[332474734,1721223044036,-500.0,0.00021917,2]
[332474735,1721223044046,-151.0,0.00021917,2]
[332474736,1721223044056,-500.0,0.00021917,2]
[332474737,1721223044067,-151.0,0.00021917,2]
[332474738,1721223044077,-151.0,0.00021917,2]
[332474739,1721223044087,-501.5057069,0.00021917,2]
[332474740,1721223044097,-500.0,0.00021917,2]
[332474741,1721223044106,-500.0,0.00021917,2]
[332474742,1721223044115,-500.0,0.00021917,2]
[332474743,1721223044125,-476.66064937,0.00021917,2]
[332474744,1721223044135,-500.0,0.00021917,2]
[332474745,1721223044144,-500.0,0.00021917,2]
[332474746,1721223044153,-500.0,0.00021917,2]
[332474747,1721223044162,-500.0,0.00021917,2]
[332474748,1721223044171,-500.0,0.00021917,2]
[332474749,1721223044181,-500.0,0.00021917,2]
[332474750,1721223044195,-500.0,0.00021917,2]
[332474751,1721223044204,-500.0,0.00021917,2]
[332474752,1721223044214,-505.1894278,0.00021917,2]
[332474753,1721223044224,-500.0,0.00021917,2]
[332474754,1721223044233,-500.0,0.00021917,2]
[332474755,1721223044243,-500.0,0.00021917,2]
[332474756,1721223044252,-500.0,0.00021917,2]
[332474757,1721223044261,-500.0,0.00021917,2]
[332474758,1721223044270,-500.0,0.00021917,2]
[332474759,1721223044279,-500.0,0.00021917,2]
[332474760,1721223044288,-500.0,0.00021917,2]
[332474761,1721223044298,-505.47407513,0.00021917,2]
[332474762,1721223044307,-500.0,0.00021917,2]
[332474763,1721223044317,-500.0,0.00021917,2]
[332474764,1721223044326,-500.0,0.00021917,2]
[332474765,1721223044335,-500.0,0.00021917,2]
[332474766,1721223044345,-500.0,0.00021917,2]
[332474767,1721223044355,-500.0,0.00021917,2]
[332474768,1721223044364,-500.0,0.00021917,2]
[332474769,1721223044373,-500.0,0.00021917,2]
[332474770,1721223044382,-500.0,0.00021917,2]
[332474771,1721223044391,-500.0,0.00021917,2]
[332474772,1721223044401,-500.0,0.00021917,2]
[332474773,1721223044410,-500.0,0.00021917,2]
[332474774,1721223044419,-500.0,0.00021917,2]
[332474775,1721223044428,-500.0,0.00021917,2]
[332474776,1721223044440,-500.0,0.00021917,2]
[332474777,1721223044449,-504.87,0.00021917,2]
[332474778,1721223044459,-500.0,0.00021917,2]
[332474779,1721223044468,-500.0,0.00021917,2]
[332474780,1721223044477,-151.0,0.00021917,2]
[332474781,1721223044486,-151.0,0.00021917,2]
[332474782,1721223044495,-500.0,0.00021917,2]
[332474783,1721223044504,-2000.0,0.00021917,2]
[332474784,1721223044514,-151.0,0.00021917,2]
[332474785,1721223044523,-151.0,0.00021917,2]
[332474786,1721223044532,-151.0,0.00021917,2]
[332474787,1721223044541,-151.0,0.00021917,2]
[332474788,1721223044550,-151.0,0.00021917,2]
[332474789,1721223044559,-500.0,0.00021917,2]
[332474790,1721223044568,-151.0,0.00021917,2]
[332474791,1721223044578,-1898.975898,0.00021917,2]
[332474792,1721223044587,-147.39313555,0.00021917,2]
[332474793,1721223044609,-1751.58276245,0.00021917,2]
[332474794,1721223044618,-154.327644,0.00021917,2]
[332474795,1721223044627,-1898.975898,0.00021917,2]
[332474796,1721223044636,-887.52632129,0.00021917,2]
[332474797,1721223044931,-500.0,0.00020989,2]
[332474798,1721223044942,-243.86677833,0.00020989,2]
[332474799,1721223044953,-500.0,0.00020989,2]
[332474800,1721223044962,-500.0,0.00020989,2]
[332474801,1721223044971,-500.0,0.00020989,2]
[332474802,1721223044980,-500.0,0.00020989,2]
[332474803,1721223044990,-500.0,0.00020989,2]
[332474804,1721223044999,-500.0,0.00020989,2]
[332474805,1721223045009,-1011.44957671,0.00021917,2]
[332474806,1721223045018,-151.0,0.00021917,2]
[332474807,1721223045029,-151.0,0.00021917,2]
[332474808,1721223045039,-151.0,0.00021917,2]
[332474809,1721223045048,-213.94,0.00021917,2]
[332474810,1721223045057,-151.0,0.00021917,2]
[332474811,1721223045066,-154.557896,0.00021917,2]
[332474812,1721223045075,-151.0,0.00021917,2]
[332474813,1721223045085,-500.0,0.00021917,2]
[332474814,1721223045095,-293.44,0.00021917,2]
[332474815,1721223045106,-151.0,0.00021917,2]
[332474816,1721223045116,-635.74,0.00021917,2]
[332474817,1721223045126,-151.0,0.00021917,2]
[332474818,1721223045136,-151.0,0.00021917,2]
[332474819,1721223045148,-151.0,0.00021917,2]
[332474820,1721223045157,-151.0,0.00021917,2]
[332474821,1721223045167,-151.0,0.00021917,2]
[332474822,1721223045176,-151.0,0.00021917,2]
[332474823,1721223045187,-151.0,0.00021917,2]
[332474824,1721223045197,-151.0,0.00021917,2]
[332474825,1721223045207,-151.0,0.00021917,2]
[332474826,1721223045216,-151.0,0.00021917,2]
[332474827,1721223045225,-151.0,0.00021917,2]
[332474828,1721223045234,-151.0,0.00021917,2]
[332474829,1721223045243,-151.0,0.00021917,2]
[332474830,1721223045253,-151.0,0.00021917,2]
[332474831,1721223045262,-1.71125181,0.00021917,2]
[332474862,1721223045877,273.37336231,0.00020222,7]
[332474867,1721223054338,1622.01584683,0.00020222,7]
[332474868,1721223080302,155.54472434,0.00019701,10]
[332474923,1721223150946,150.5,0.00022171,62]
[332474924,1721223150986,178.0,0.00022171,62]
[332474925,1721223151422,268.91,0.00022161,62]
[332474926,1721223151524,178.0,0.00022161,62]
[332474928,1721223152069,178.0,0.00022151,62]
[332474938,1721223210231,10000.0,0.00025,120]
[332474939,1721223211862,2630.39594933,0.00014999,2]
[332474940,1721223223083,2691.992947,0.00014999,2]
[332474941,1721223227062,3135.78832158,0.00014999,2]
[332474942,1721223228173,4601.0,0.00025,120]
[332474943,1721223228339,187.87198309,0.00014999,2]
[332474944,1721223235273,318.617778,0.00014999,2]
[332474945,1721223254011,155.07135854,0.00014999,2]
[332474946,1721223265015,778.26945323,0.00014999,2]
[332474947,1721223266688,403.0290507,0.00014999,2]
[332474948,1721223270228,2163.88183251,0.00014999,2]
[332474949,1721223271689,150.5,0.0002197,62]
[332474950,1721223272164,150.5,0.0002196,62]
[332474951,1721223272394,204.39643905,0.00014999,2]
[332474952,1721223272563,156.54213088,0.00014999,2]
[332474953,1721223272668,150.5,0.0002195,62]
[332474954,1721223272810,271.85286028,0.00014999,2]
[332474955,1721223273341,335.20657328,0.00015,2]
[332474956,1721223274534,197.10656075,0.00014999,2]
[332474957,1721223276778,662.70423016,0.00014999,2]
[332474958,1721223278140,413.3491553,0.00014999,2]